Workbook

Sheet Introduction
A3: . . . . . . . . . . . . . . . . . . . . . . . . . . . . . . . . . . . . . . . . . . . . . . . . .
B5: Guidelines For Estimating
B6: Swine Farrow-Finish Costs
B7: ="Based On "&'Farrow Input'!G13&" Sows and "&FIXED('Farrow Input'!F83,0)&" Pigs Sold" -> Based On 500 Sows and 13,033 Pigs Sold
G12: Date: | H12: June, 2025
B18: This guide is designed to provide you with planning information and a format for calculating costs of production of a swine farrow to finish enterprise in Manitoba. General Manitoba Agriculture recommendations are assumed in using feed and veterinary inputs. These figures provide an economic evaluation of the livestock and estimated prices required to cover all costs. Costs include labour, investment and depreciation, but do not include management costs, nor do they necessarily represent the average cost of production in Manitoba.
B26: These budgets may be adjusted by putting in your own figures. As a producer you are encouraged to calculate your own costs of production. The assumptions on which the costs are based are outlined in the supporting pages. These assumptions were arrived at using the breeding stock, management practices, and facilities seen in modern, well managed swine operations of comparable size in Manitoba. Productivity and performance assumptions are based on information collected by department specialists, feed companies and other organizations. Where individual herd productivity and performance levels differ from those listed, adjustments will be required.
B38: This tool is available as an Excel worksheet at:
B45: is also available to help
B46: determine machinery costs.
B54: Note: This budget is only a guide and is not intended as an in-depth study of the cost of production of this industry. Interpretation and use of this information is the responsibility of the user. If you need help with a budget, contact a Farm Management Specialist.

Sheet Assumptions
B2: Farrow-Finish Pig Cost of Production
B4: ="The following farrow to finish budget is based on the assumption that all feed is purchased or home-mixed. The budget includes a land investment cost for "&'Fixed Cost'!D33&" acres, with "&'Fixed Cost'!C46&" acres rented out at $"&'Fixed Cost'!C47&" per acre, of the estimated "&ROUND(((('Farrow Input'!C162*'Farrow Input'!H164)/(40.768*2))*2.4709661),0)&" to "&ROUND(((('Farrow Input'!C162*'Farrow Input'!H164)/(26.362*2))*2.4709661),0)&" acres of total landbase that would be required for this size of livestock operation. This land base falls within the 2XP2O5 application rate, soil phosphorus levels permitting." -> The following farrow to finish budget is based on the assumption that all feed is purchased or home-mixed. The budget includes a land investment cost for 40 acres, with 0 acres rented out at $100 per acre, of the estimated 233 to 361 acres of total landbase that would be required for this size of livestock operation. This land base falls within the 2XP2O5 application rate, soil phosphorus levels permitting.
B11: The budget includes an assumption that 1.75% of the market pigs are sold as lightweight pigs. It is assumed that when the lightweight pigs are sold, they will have a salvage value. Therefore, total marketings are reduced by only 1% to compensate for the lightweight pigs.
B16: The budget includes an assumption that this particular operation is "all-in, all-out" by room. Space allocations for finishing pigs are in accordance with the Recommended Code of Practice for the Care and Handling of Farm Animals: Pigs.
B21: The rations illustrated in this budget are examples only. Individual farm conditions should be taken into account when formulating the diets. Producers need to know the feed intakes of their animals. Please consult with a nutritionist for diet information and suggestions.
B26: The Manitoba pork production industry profile is changing and this budget was specifically designed to address the need of producers who may want to analyze the cost of production for a new farrow to finish operation. Several companies are offering contracts with varying levels of guarantees. Producers need to accurately calculate their costs before they can properly make a decision.

Sheet Farrow-Finish Summary
A1: ='Farrow Input'!G13&" Sow Farrow-Finish Cost of Production Summary - "&Introduction!H12 -> 500 Sow Farrow-Finish Cost of Production Summary - June, 2025
E2: Purchased Feed
E3: $/Pig | F3: $/Sow | G3: Total | I3: Your
A4: A. Operating Costs | E4: Sold | F4: /Year | G4: Cost | I4: Cost
A5: 1. | B5: Feed Costs:
B6: Sow Lactation | E6: ='Farrow Input'!G56 -> 5.997504128 | F6: =E6*'Farrow Input'!$G$83 -> 156.3309426 | G6: =E6*'Farrow Input'!$F$83 -> 78165.4713
B7: Sow Gestation | E7: ='Farrow Input'!F56 -> 14.93825178 | F7: =E7*'Farrow Input'!$G$83 -> 389.380471 | G7: =E7*'Farrow Input'!$F$83 -> 194690.2355
B8: Boar Ration | E8: ='Farrow Input'!H56 -> 0.09892994835 | F8: =E8*'Farrow Input'!$G$83 -> 2.578708034 | G8: =E8*'Farrow Input'!$F$83 -> 1289.354017
B9: Pre Starter 1 | E9: ='Farrow Input'!E44 -> 1.525026134 | F9: =E9*'Farrow Input'!$G$83 -> 39.7513312 | G9: =E9*'Farrow Input'!$F$83 -> 19875.6656
B10: Pre Starter 2 | E10: ='Farrow Input'!F44 -> 4.218522213 | F10: =E10*'Farrow Input'!$G$83 -> 109.96 | G10: =E10*'Farrow Input'!$F$83 -> 54980
B11: Starter 1 | E11: ='Farrow Input'!G44 -> 10.37893566 | F11: =E11*'Farrow Input'!$G$83 -> 270.537337 | G11: =E11*'Farrow Input'!$F$83 -> 135268.6685
B12: Starter 2 | E12: ='Farrow Input'!H44 -> 11.3805183 | F12: =E12*'Farrow Input'!$G$83 -> 296.64459 | G12: =E12*'Farrow Input'!$F$83 -> 148322.295
B13: Starter | E13: ='Farrow Input'!F96 -> 17.13 | F13: =E13*'Farrow Input'!$G$83 -> 446.51058 | G13: =E13*'Farrow Input'!$F$83 -> 223255.29
B14: Grower | E14: ='Farrow Input'!G96 -> 76.26 | F14: =E14*'Farrow Input'!$G$83 -> 1987.79316 | G14: =E14*'Farrow Input'!$F$83 -> 993896.58
B15: Finisher | E15: ='Farrow Input'!H96 -> 41.99 | F15: =E15*'Farrow Input'!$G$83 -> 1094.51134 | G15: =E15*'Farrow Input'!$F$83 -> 547255.67
A16: Total Feed Cost | E16: =SUM(E6:E15) -> 183.9176882 | F16: =SUM(F6:F15) -> 4793.99846 | G16: =SUM(G6:G15) -> 2396999.23
A18: 2. | B18: Other Operating Costs:
B19: Veterinary Medicine & Supplies | E19: ='Farrow Input'!C118+'Farrow Input'!C122 -> 5.370981355 | F19: =E19*'Farrow Input'!$G$83 -> 140 | G19: =E19*'Farrow Input'!$F$83 -> 70000
B20: Maintenance & Repairs | E20: ='Farrow Input'!C128 -> 5.905481556 | F20: =E20*'Farrow Input'!$G$83 -> 153.9322822 | G20: =E20*'Farrow Input'!$F$83 -> 76966.14111
B21: Hydro & Propane | E21: ='Farrow Input'!C135+'Farrow Input'!C141 -> 9.273680657 | F21: =E21*'Farrow Input'!$G$83 -> 241.72776 | G21: =E21*'Farrow Input'!$F$83 -> 120863.88
B22: Insurance | E22: ='Farrow Input'!H148 -> 4.854308036 | F22: =E22*'Farrow Input'!$G$83 -> 126.5323933 | G22: =E22*'Farrow Input'!$F$83 -> 63266.19664
B23: Manure Costs | E23: ='Farrow Input'!C177 -> 2.459376874 | F23: =E23*'Farrow Input'!$G$83 -> 64.1061176 | G23: =E23*'Farrow Input'!$F$83 -> 32053.0588
B24: Office Supplies | E24: ='Farrow Input'!C182 -> 0.07672830507 | F24: =E24*'Farrow Input'!$G$83 -> 2 | G24: =E24*'Farrow Input'!$F$83 -> 1000
B25: Marketing & Transport. | E25: ='Farrow Input'!C192 -> 5.61 | F25: =E25*'Farrow Input'!$G$83 -> 146.23026 | G25: =E25*'Farrow Input'!$F$83 -> 73115.13
B26: Artificial Insemination Costs | E26: ='Farrow Input'!C200 -> 1.575040282 | F26: =E26*'Farrow Input'!$G$83 -> 41.055 | G26: =E26*'Farrow Input'!$F$83 -> 20527.5
B27: Herd Replacement | E27: ='Farrow Input'!C227 -> 0.6355290417 | F27: =E27*'Farrow Input'!$G$83 -> 16.5657 | G27: =E27*'Farrow Input'!$F$83 -> 8282.85
B28: Property Tax | E28: ='Farrow Input'!C239 -> 0.9667766439 | F28: =E28*'Farrow Input'!$G$83 -> 25.2 | G28: =E28*'Farrow Input'!$F$83 -> 12600
A29: Subtotal Operating Costs | E29: =SUM(E19:E28)+E16 -> 220.6455909 | F29: =SUM(F19:F28)+F16 -> 5751.347973 | G29: =SUM(G19:G28)+G16 -> 2875673.986
B30: Interest on Operating Costs | E30: ='Farrow Input'!D247 -> 3.787245554 | F30: =E30*'Farrow Input'!G83 -> 98.7183426 | G30: =E30*'Farrow Input'!F83 -> 49359.1713
A31: Total Operating Costs | E31: =SUM(E29:E30) -> 224.4328365 | F31: =SUM(F29:F30) -> 5850.066316 | G31: =SUM(G29:G30) -> 2925033.158
A33: B. Fixed Costs
B34: Buildings & Manure Storage | E34: ='Fixed Cost'!D29 -> 32.74841148 | F34: =E34*'Farrow Input'!$G$83 -> 853.6200936 | G34: =E34*'Farrow Input'!$F$83 -> 426810.0468
B35: Barn Equipment | E35: ='Fixed Cost'!I29 -> 21.63503732 | F35: =E35*'Farrow Input'!$G$83 -> 563.9388829 | G35: =E35*'Farrow Input'!$F$83 -> 281969.4414
B36: Breeding Stock | E36: ='Fixed Cost'!I41+'Fixed Cost'!I53 -> 2.282427066 | F36: =E36*'Farrow Input'!$G$83 -> 59.4937439 | G36: =E36*'Farrow Input'!$F$83 -> 29746.87195
B37: Land | E37: ='Fixed Cost'!D43 -> 1.039755227 | F37: =E37*'Farrow Input'!$G$83 -> 27.10225975 | G37: =E37*'Farrow Input'!$F$83 -> 13551.12988
A38: Total Fixed Costs | E38: =SUM(E34:E37) -> 57.70563109 | F38: =SUM(F34:F37) -> 1504.15498 | G38: 752077.4901
A40: C. Labour
B41: ='Farrow Input'!C100 -> 120 | C41: hours/week farrow wean | E41: ='Farrow Input'!C105 -> 12.92718484 | F41: =E41*'Farrow Input'!$G$83 -> 336.96 | G41: =E41*'Farrow Input'!$F$83 -> 168480
B42: ='Farrow Input'!C107 -> 40 | C42: hours/week grower finish | E42: ='Farrow Input'!C112 -> 4.309061613 | F42: =E42*'Farrow Input'!$G$83 -> 112.32 | G42: =E42*'Farrow Input'!$F$83 -> 56160
A43: Total Labour Cost | E43: =SUM(E41:E42) -> 17.23624645 | F43: =SUM(F41:F42) -> 449.28 | G43: =SUM(G41:G42) -> 224640
A44: Total Cost of Production | E44: =E31+E38+E43 -> 299.374714 | F44: =F31+F38+F43 -> 7803.501296 | G44: =G31+G38+G43 -> 3901750.648
A46: Profitability and Breakeven Analysis
A48: Estimated Farmgate | E48: $/Pig | F48: $/Sow | G48: Total
B49: Market Price ($ per 100kg) | E49: ='Farrow Input'!D60 -> 277
B50: Market weight (shrunk-kg/hog live) | E50: =('Farrow Input'!H66)*(1-('Farrow Input'!G82/100)) -> 119.9988
B51: Dressing % | E51: ='Farrow Input'!H61 -> 80
B52: Premium per head sold | E52: ='Farrow Input'!D61 -> 0
B53: Land rental per head sold | E53: =SUM(('Fixed Cost'!C47*'Fixed Cost'!C46)/'Farrow Input'!F83) -> 0
B54: Gross Revenue / hog | E54: =SUM(((E50*E51)*('Farrow Input'!$H$60/100)*E49)/10000+E52)+E53 -> 292.5090749 | F54: =E54*'Farrow Input'!$G$83 -> 7624.541546 | G54: =ROUND(E54*'Farrow Input'!$F$83,0) -> 3812271
A56: Marginal Returns
B57: Over Operating Costs | E57: =SUM(E54-E31) -> 68.07623841 | F57: =SUM(F54-F31) -> 1774.47523 | G57: =SUM(G54-G31) -> 887237.8422
B58: Over Operating & Labour Costs | E58: =SUM(E54-E31-E43) -> 50.83999195 | F58: =SUM(F54-F31-F43) -> 1325.19523 | G58: =SUM(G54-G31-G43) -> 662597.8422
B59: Over Total Costs (Net Profit) | E59: =SUM(E54-E44) -> -6.86563914 | F59: =SUM(F54-F44) -> -178.9597498 | G59: =SUM(G54-G44) -> -89479.64782
A61: Operating Expense Ratio | E61: =SUM(E31/E54) -> 0.767267944
A63: Breakeven Selling Price | E63: $/100 kg | F63: $/cwt
B64: Operating Costs | E64: =(E31/(('Farrow Input'!$H$66*(1-('Farrow Input'!$G$82/100))*'Farrow Input'!$H$61/100*'Farrow Input'!$H$60/100))*100) -> 212.5332205 | F64: =E64/2.2046 -> 96.4044364
B65: Operating & Labour Costs | E65: =((E31+E43)/(('Farrow Input'!$H$66*(1-('Farrow Input'!$G$82/100)))*'Farrow Input'!$H$61/100*'Farrow Input'!$H$60/100))*100 -> 228.8555868 | F65: =E65/2.2046 -> 103.8082132
B66: Total Costs | E66: =((E31+E43+E38)/(('Farrow Input'!$H$66*(1-('Farrow Input'!$G$82/100))*'Farrow Input'!$H$61/100*'Farrow Input'!$H$60/100))*100) -> 283.5016172 | F66: =E66/2.2046 -> 128.59549
A68: Return On Assets (ROA) | E68: =SUM((E59+E30+'Fixed Cost'!G70)*'Farrow Input'!$H$70)/(('Fixed Cost'!D52)+(((E54-E53)/2)*'Farrow Input'!H74)) -> 0.02382096729
A70: ¹ FOOTNOTE: Break-even Price = Cost per Hog Sold ÷ (Slaughter Weight(-shrink) X Dressing Percentage X Index)
A71: Note: This budget is only a guide and is not intended as an in depth study of the cost of production of this industry. Interpretation and utilization of this information is the responsibility of the user.

Sheet Risk Analysis
A1: Risk & Sensitivity Analysis
C3: Purchased Feed
C4: Per Pig
A5: A. Operating Costs
B6: Feed cost | C6: ='Farrow-Finish Summary'!E16 -> 183.9176882
B7: Other Operating Costs | C7: =SUM(C8-C6) -> 40.5151483
B8: Subtotal | C8: ='Farrow-Finish Summary'!E31 -> 224.4328365
A9: B. Fixed Costs | C9: ='Farrow-Finish Summary'!E38 -> 57.70563109
A10: C. Labour | C10: ='Farrow-Finish Summary'!E43 -> 17.23624645
A11: Total Costs | C11: =SUM(C8:C10) -> 299.374714
A13: Estimated Farmgate
B14: Price ($ per 100kg) | C14: ='Farrow-Finish Summary'!E49 -> 277
C17: Up | E17: Down
B18: Percent Market Price Variation | C18: 0.1 | E18: 0.1
B19: Percent Feed Cost Variation | C19: 0.1 | E19: 0.05
B22: Higher Price ($ per 100kg) | C22: =SUM(C14*(1+C18)) -> 304.7
B23: Lower Price ($ per 100kg) | C23: =SUM(C14*(1-E18)) -> 249.3
B24: Higher Feed Cost | C24: =SUM(C6+(C6*(C19))) -> 202.309457
B25: Lower Feed Cost | C25: =SUM(C6-(C6*E19)) -> 174.7218038
A28: ="Higher Margin Scenario - Price Up "&C18*100&"% and Feed Price Down "&E19*100&"%" -> Higher Margin Scenario - Price Up 10% and Feed Price Down 5%
B29: Operating Costs | C29: =SUM(C7+C25) -> 215.2369521
B30: Total Costs | C30: =C29+C10+C9 -> 290.1788296
B31: Gross Revenue / hog | C31: =SUM((('Farrow-Finish Summary'!$E$50*'Farrow-Finish Summary'!$E$51)*('Farrow Input'!$H$60/100)*C22)/10000+'Farrow-Finish Summary'!$E$52) -> 321.7599824
B32: Marginal Returns
B33: Over Operating Costs | C33: =SUM(C31-C29) -> 106.5230303
B34: Over Operating & Labour Costs | C34: =SUM(C31-C29-C10) -> 89.28678385
B35: Over Total Costs (Net Profit) | C35: =SUM(C31-C30) -> 31.58115276
B36: Operating Expense Ratio | C36: =SUM(C29/C31) -> 0.6689363621
A38: ="Lower Margin Scenario - Price Down "&E18*100&"% and Feed Price Up "&C19*100&"%" -> Lower Margin Scenario - Price Down 10% and Feed Price Up 10%
B39: Operating Costs | C39: =SUM(C7+C24) -> 242.8246053
B40: Total Costs | C40: =C9+C10+C39 -> 317.7664828
B41: Gross Revenue / hog | C41: =SUM((('Farrow-Finish Summary'!$E$50*'Farrow-Finish Summary'!$E$51)*('Farrow Input'!$H$60/100)*C23)/10000+'Farrow-Finish Summary'!$E$52) -> 263.2581674
B42: Marginal Returns
B43: Over Operating Costs | C43: =SUM(C41-C39) -> 20.4335621
B44: Over Operating & Labour Costs | C44: =SUM(C41-C39-C10) -> 3.197315649
B45: Over Total Costs (Net Profit) | C45: =SUM(C41-C40) -> -54.50831544
B46: Operating Expense Ratio | C46: =SUM(C39/C41) -> 0.9223820393
A49: Note: This budget is only a guide and is not intended as an in depth study of the cost of production of this industry. Interpretation and utilization of this information is the responsibility of the user.

Sheet Farrow Input
A2: Farrow - Finish Pig Production Costs
A4: 1 | B4: This input table outlines the cost of production for a farrow finish operation.
A5: 2 | B5: Buildings and equipment are valued at new cost.
A6: 3 | B6: Purchased feed is used.
A7: 4 | B7: Manure haulage is contracted out.
A8: 5 | B8: Gilts are purchased for herd replacement.
A9: 6 | B9: No weaner pigs are sold.
A11: Farrow - Wean Pig Production Assumptions
A12: Indicators of Productivity
B13: Sows | G13: 500 | H13: 300 | I13: /sow
B14: Boars | G14: 3 | H14: 3000 | I14: /boar
B15: Litters/Sow/Year | G15: 2.38
B16: Average Weaning Age (days) | G16: 21
B17: Average Born Alive per Litter | G17: 13.9
B18: Percent Pre-Weaning Mortality | G18: 14.5
B19: Percent Post-Weaning Mortality | G19: 2.8
A21: Herd Profile | E21: Total | F21: /Sow | G21: /Litter | H21: %Mortality
B22: Sows | E22: =G13 -> 500
B23: Boars | E23: =G14 -> 3
B24: Litters | E24: =ROUND(F24*E22,0) -> 1190 | F24: =G15 -> 2.38
B25: Pigs Born Alive | E25: =ROUND(G17*E24,0) -> 16541 | F25: =ROUND(E25/E22,2) -> 33.08 | G25: =G17 -> 13.9
B26: Pigs Died, Pre-Weaning | E26: =ROUND(G18*E25/100,0) -> 2398 | F26: =ROUND(E26/E22,2) -> 4.8 | G26: =ROUND(E26/E24,2) -> 2.02 | H26: =G18 -> 14.5
B27: Pigs Weaned | E27: =E25-E26 -> 14143 | F27: =ROUND(E27/E22,2) -> 28.29 | G27: =ROUND(E27/E24,2) -> 11.88
B28: Pigs Died, Post-Weaning | E28: =ROUND(G19*E27/100,0) -> 396 | F28: =ROUND(E28/E22,2) -> 0.79 | G28: =ROUND(E28/E24,2) -> 0.33 | H28: =G19 -> 2.8
B29: Weaner Pigs Transferred | E29: =ROUND(E27-E28,0) -> 13747 | F29: =ROUND(E29/E22,2) -> 27.49 | G29: =ROUND(E29/E24,2) -> 11.55
A31: Feed Required and Costs - Weaner Pig | E31: Ration 1 | F31: Ration 2 | G31: Ration 3 | H31: Ration 4 | I31: Total
E32: (Pre Starter 1) | F32: (Pre Starter 2) | G32: (Starter 1) | H32: (Starter 2)
B33: Days Post-Weaning (nursery) | E33: 3 | F33: 8 | G33: 17 | H33: 14 | I33: =SUM(E33:H33) -> 42
B34: Target Starting Weight (kg) | E34: 6 | F34: 6.5 | G34: 9 | H34: 16.5 | I34: =E34 -> 6
B35: Target Ending Weight (kg) | E35: 6.5 | F35: 9 | G35: 16.5 | H35: 26 | I35: =H35 -> 26
B36: Average Daily Gain (kg) | E36: =(E35-E34)/E33 -> 0.1666666667 | F36: =(F35-F34)/F33 -> 0.3125 | G36: =(G35-G34)/G33 -> 0.4411764706 | H36: =(H35-H34)/H33 -> 0.6785714286 | I36: =((E36*($E$35-$E$34))+(F36*($F$35-$F$34))+(G36*($G$35-G$34))+(H36*($H$35-$H$34)))/($H$35-$E$34) -> 0.5309917717
B37: kg ration/ pig | E37: 0.8 | F37: 4 | G37: 11.9 | H37: 16.5 | I37: =SUM(E37:H37) -> 33.2
A38: ÷ | B38: kg weight gain | E38: =SUM(E35-E34) -> 0.5 | F38: =SUM(F35-F34) -> 2.5 | G38: 7.5 | H38: 9.5 | I38: 20
A39: = | B39: FCR* (Feed:Gain) | E39: =E37/E38 -> 1.6 | F39: =F37/(F35-F34) -> 1.6 | G39: =G37/(G35-G34) -> 1.586666667 | H39: =H37/(H35-H34) -> 1.736842105 | I39: =I37/I38 -> 1.66
A40: x | B40: ration cost per tonne | E40: 1502 | F40: 1000 | G40: 827 | H40: 654
A41: ÷ | B41: kg/tonne | E41: 1000 | F41: 1000 | G41: 1000 | H41: 1000
A42: x | B42: weaners transferred/sow/year | E42: ='Farrow Input'!G17*'Farrow Input'!G15 -> 33.082 | F42: ='Farrow Input'!F29 -> 27.49 | G42: ='Farrow Input'!F29 -> 27.49 | H42: ='Farrow Input'!F29 -> 27.49
A43: ÷ | B43: pigs sold/sow/year | E43: ='Farrow Input'!$G$83 -> 26.066 | F43: ='Farrow Input'!$G$83 -> 26.066 | G43: ='Farrow Input'!$G$83 -> 26.066 | H43: ='Farrow Input'!$G$83 -> 26.066
A44: = | B44: /pig sold | E44: =((E37*E40/1000)*E42)/E43 -> 1.525026134 | F44: =((F37*F40/1000)*F42)/F43 -> 4.218522213 | G44: =((G37*G40/1000)*G42)/G43 -> 10.37893566 | H44: =((H37*H40/1000)*H42)/H43 -> 11.3805183
A46: Feed Requirements and Costs - Breeding Stock | G46: Nursing
F47: Dry Sow | G47: Sow | H47: Boar Ration
C48: Days average weaning age | G48: =G16 -> 21
B49: x | C49: Litters/Sow/Year | G49: =G15 -> 2.38
B50: = | C50: Days lactation/gestation | F50: =365-G50 -> 315.02 | G50: =SUM(G16*G15) -> 49.98 | H50: 365
B51: x | C51: kg ration/day | F51: 2.95 | G51: 6.53 | H51: 3
B52: x | C52: ration cost per tonne | F52: 419 | G52: 479 | H52: 414
B53: x | C53: boars | H53: =G14 -> 3
B54: ÷ | C54: kg/tonne | F54: 1000 | G54: 1000 | H54: 1000
B55: ÷ | C55: pigs sold/sow/year | F55: ='Farrow Input'!$G$83 -> 26.066 | G55: ='Farrow Input'!$G$83 -> 26.066 | H55: =E29 -> 13747
B56: = | C56: /pig sold | F56: =(F50*F51*F52/F54)/F55 -> 14.93825178 | G56: =(G48*G49*G51*G52/1000)/G55 -> 5.997504128 | H56: =(H50*H51*H52*H53/H54)/H55 -> 0.09892994835
A58: Grower-Finisher Pig Production Assumptions
A59: Marketing
B60: Market price/100kg | D60: 277 | E60: or | F60: =D60/2.2046 -> 125.6463758 | G60: /cwt | H60: 110 | I60: Market Index
B61: Premium/head | D61: 0 | H61: 80 | I61: % Dressing
A63: Indicators of Productivity | F63: Starter | G63: Grower | H63: Finisher | I63: Total
B64: No. of Pigs (Beginning) | F64: ='Farrow Input'!E29 -> 13747 | G64: =F70 -> 13616.4035 | H64: =G70 -> 13487.04767 | I64: --
B65: Average Beginning Weight (kg) | F65: =H35 -> 26 | G65: =F66 -> 40 | H65: =G66 -> 95 | I65: --
B66: Average Ending Weight (kg) | F66: 40 | G66: 95 | H66: 123 | I66: --
B67: Percent Mortality | F67: 0.95 | G67: 0.95 | H67: 0.95 | I67: =((F64-H70)/F64)*100 -> 2.823010737
B68: Days on Feed | F68: 19 | G68: 65 | H68: 32 | I68: =SUM(F68:H68) -> 116
B69: Feed Conversion Ratio ¹ | F69: 1.95 | G69: 2.8 | H69: 3.5 | I69: =(F69*(F66-F65)+G69*(G66-G65)+H69*(H66-H65))/(H66-F65) -> 2.879381443
B70: No. of Pigs (Ending) | F70: =F64-(F64*F67/100) -> 13616.4035 | G70: =G64-(G64*G67/100) -> 13487.04767 | H70: =H64-(H64*H67/100) -> 13358.92071 | I70: --
B71: Weight Gain/Pig (kg) | F71: =F66-F65 -> 14 | G71: =G66-G65 -> 55 | H71: =H66-H65 -> 28 | I71: =SUM(F71:H71) -> 97
B72: Feed Disappearance/Pig (kg) | F72: =F69*F71 -> 27.3 | G72: =G69*G71 -> 154 | H72: =H69*H71 -> 98 | I72: =SUM(F72:H72) -> 279.3
B73: Average Daily Gain (kg) | F73: =(F66-F65)/F68 -> 0.7368421053 | G73: =(G66-G65)/G68 -> 0.8461538462 | H73: =(H66-H65)/H68 -> 0.875 | I73: =I71/I68 -> 0.8362068966
B74: Average No. Pigs in Barn ² | F74: =((F64+F70)/2)/(365/I68) -> 4348.157268 | G74: =(G64+G70)/2/(365/I68) -> 4306.849774 | H74: =(H64+H70)/2/(365/I68) -> 4265.934702 | I74: =SUM(F74:H74)/3 -> 4306.980582
B75: ¹ FOOTNOTE: The Feed Conversion Ratio (FCR) in the 'Total' column is a weighted average of the other feed conversion ratios. Also note that an accurate feed conversion ratio for the grower-finisher enterprise is calculated by dividing 'Total Feed used per Year' by 'Total Gain per Year'; where 'Total Gain per Year' equals 'Total Hogs Sold' times 'Gain per Hog'. When calculated in this way, the feed conversion ratio includes feed lost through wastage and weight gain lost through death of pigs.
B76: ² FOOTNOTE: Assume that "Avg. No. of Pigs in Barn" equals "Pig Places".
A78: Productivity Profile | F78: Total
B79: Pigs transferred | F79: =F64 -> 13747
B80: Pigs Died | F80: =ROUND(F79*I67/100,0) -> 388 | G80: 2.8 | H80: % mortality
B81: Pigs available for marketing | F81: =F79-F80 -> 13359
B82: Less light weight pig adjustment | F82: =F81*G82/100 -> 325.9596 | G82: 2.44 | H82: % light weight adjustment
B83: Pigs Sold at full market value | F83: =ROUND(F81-F82,0) -> 13033 | G83: =F83/'Farrow Input'!E22 -> 26.066 | H83: sold/sow
B84: Total Days to Market | F84: ='Farrow Input'!G16+'Farrow Input'!E33+'Farrow Input'!F33+F68+G68+H68+G33+H33 -> 179
B85: Turnover finish | F85: =ROUND(365/I68,2) -> 3.15
B86: Turnover wean to finish | F86: =365/(I68+I33) -> 2.310126582
A88: Feed Requirements and Costs - Feeder Pigs | F88: Starter | G88: Grower | H88: Finisher
C89: kg weight gain/pig | F89: =F71 -> 14 | G89: =G71 -> 55 | H89: =H71 -> 28
B90: x | C90: FCR* (Feed:Gain) | F90: =F69 -> 1.95 | G90: =G69 -> 2.8 | H90: =H69 -> 3.5
B91: = | C91: kg ration/pig | F91: =F72 -> 27.3 | G91: =G72 -> 154 | H91: =H72 -> 98
B92: x | C92: ration cost per tonne | F92: 595 | G92: 474 | H92: 414
B93: ÷ | C93: kg/tonne | F93: 1000 | G93: 1000 | H93: 1000
B94: x | C94: weanlings transferred | F94: =F79 -> 13747 | G94: =G64 -> 13616.4035 | H94: =H64 -> 13487.04767
B95: ÷ | C95: pigs sold | F95: =F83 -> 13033 | G95: =F83 -> 13033 | H95: =F83 -> 13033
B96: = | C96: /pig sold | F96: =ROUND(((F91*F92/1000)*F94)/F95,2) -> 17.13 | G96: =ROUND(((G91*G92/1000)*G94)/G95,2) -> 76.26 | H96: =ROUND(((H91*H92/1000)*H94)/H95,2) -> 41.99
C97: * FCR = Feed Conversion Ratio (Feed:Gain)
A99: Labour-Farrow Wean
C100: =ROUND(0.24*G13,0) -> 120 | D100: hours/week
B101: x | C101: 52 | D101: weeks/year
B102: = | C102: =C100*52 -> 6240 | D102: ="total hours/year ("&C102/G13&" hrs/sow)" -> total hours/year (12.48 hrs/sow)
B103: x | C103: 27 | D103: wage/hour (includes hired manager)
B104: ÷ | C104: =F83 -> 13033 | D104: pigs sold
B105: = | C105: =(C102*C103)/C104 -> 12.92718484 | D105: /pig sold
A106: Labour-Grower Finisher
C107: 40 | D107: hours/week
B108: x | C108: 52 | D108: weeks/year
B109: = | C109: =C107*52 -> 2080 | D109: ="total hours/year ("&ROUND(C109/'Fixed Cost'!C6,2)&" hrs/feeder space)" -> total hours/year (0.45 hrs/feeder space)
B110: x | C110: 27 | D110: wage/hour (includes hired manager)
B111: ÷ | C111: =F83 -> 13033 | D111: pigs sold
B112: = | C112: =C109*C110/C111 -> 4.309061613 | D112: /pig sold
A114: Veterinary Medicine & Supplies
C115: 140 | D115: Professional Services/sow
B116: + | C116: 0 | D116: Medication/sow
B117: ÷ | C117: ='Farrow Input'!$G$83 -> 26.066 | D117: pigs sold/sow/year
C118: =SUM(C115:C116)/C117 -> 5.370981355 | D118: /pig sold
C120: 0 | D120: Sevices and Medication/pig transferred in
B121: ÷ | C121: ='Farrow Input'!F83 -> 13033 | D121: pigs sold
C122: =SUM(C120/C121) -> 0 | D122: /pig sold
A124: Maintenance & Repair
C125: 1.3 | D125: % of Total Capital Investment
B126: x | C126: ='Fixed Cost'!D16+'Fixed Cost'!I16 -> 5920472.393 | D126: total buildings and equipment cost
B127: ÷ | C127: =F83 -> 13033 | D127: pigs sold
B128: = | C128: =SUM((C125/100)*C126)/C127 -> 5.905481556 | D128: /pig sold
A130: Hydro & Propane
C131: 1024 | D131: Hydro usage - kwhr/sow
B132: x | C132: =G13 -> 500 | D132: sows
B133: x | C133: 0.09324 | D133: Hydro rate per kwhr
B134: ÷ | C134: =F83 -> 13033 | D134: pigs sold
B135: = | C135: =SUM((C131*C132*C133)/C134) -> 3.662923348 | D135: /pig sold
C137: 195 | D137: Propane usage - litres/sow
B138: x | C138: =G13 -> 500 | D138: sows
B139: x | C139: 0.75 | D139: Propane rate per litre
B140: ÷ | C140: =F83 -> 13033 | D140: pigs sold
B141: = | C141: =SUM((C137*C138*C139)/C140) -> 5.610757308 | D141: /pig sold
A143: Insurance
C144: 0.78 | D144: /$100 Capital Invested - Buildings and Equip. | H144: =SUM('Fixed Cost'!D16+'Fixed Cost'!I16)*C144/100/$F$83 -> 3.543288933
C145: 0.88 | D145: /$100 Capital Invested - Breeding Stock | H145: =SUM('Fixed Cost'!I32*'Farrow Input'!G13+('Farrow-Finish Summary'!E54*'Farrow Input'!I74))*C145/100/$F$83 -> 0.9519306351
C146: 0.78 | D146: /$100 Capital Invested - Business Interuption
C147: 1200 | D147: per sow - Business Interuption Value | H147: =SUM(C147*G13*C146/100/F95) -> 0.3590884677
H148: =SUM(H144:H147) -> 4.854308036 | I148: /pig sold
A150: Manure Costs
B151: Haulage | D151: 68 | E151: litres/sow/day ³ | G151: ³ 1000 litres = 35.314 cubic feet
B152: x | C152: 365 | D152: days/year
B153: x | C153: =G13 -> 500 | D153: average inventory of sows
B154: x | C154: 0.003 | D154: /litre = | F154: =C154*4.54609 -> 0.01363827 | G154: /gallon
B155: ÷ | C155: =F83 -> 13033 | D155: pigs sold
B156: = | C156: =(D151*C152*C153*C154)/C155 -> 2.856594798 | D156: /pig sold
B157: Estimated Nutrient Value
C158: =D151 -> 68 | D158: litres/pig/day
B159: x | C159: 365 | D159: days/year
B160: x | C160: =C153 -> 500 | D160: average inventory of pigs
B161: ÷ | C161: 1000
B162: = | C162: =SUM((C158*C159*C160)/1000) -> 12410 | D162: # of 1000 litres of manure
G163: Nitrogen | H163: Phosphate | I163: Potassium
C164: kg per 1000 litres | G164: 2.69 | H164: 0.62 | I164: 1.14
B165: x | C165: # of 1000 litres of manure | G165: =C162 -> 12410 | H165: =C162 -> 12410 | I165: =C162 -> 12410
B166: x | C166: % nutrient value recovery | G166: 60 | H166: 0 | I166: 0
B167: ÷ | C167: lbs per kg | G167: 2.2045855 | H167: 2.2045855 | I167: 2.2045855
B168: x | C168: fertilizer value per lb. | G168: 0.9 | H168: 0.9 | I168: 0.5
B169: ÷ | C169: pigs sold | G169: =F83 -> 13033 | H169: =F83 -> 13033 | I169: =F83 -> 13033
B170: = | C170: estimated nutrient value / pig sold | G170: =SUM((G164*G165*(G166/100)/G167)*G168)/G169 -> 0.6274028388 | H170: =SUM((H164*H165*(H166/100)/H167)*H168)/H169 -> 0 | I170: =SUM((I164*I165*(I166/100)/I167)*I168)/I169 -> 0
B171: Odour control & Mgmt Fees | G171: * kg/1000 L x 10 = lbs/1000 imp. Gallons
C172: 0 | D172: Odour control (barley straw)
B173: + | C173: 3000 | D173: Manure Management Fee
B174: ÷ | C174: =F83 -> 13033 | D174: pigs sold
B175: = | C175: =(C172+C173)/C174 -> 0.2301849152 | D175: /pig sold
B177: = | C177: =C156+C175-(G170+H170+I170) -> 2.459376874 | D177: /pig sold
A179: Office Supplies
C180: 2 | D180: $/sow
B181: + | C181: =G83 -> 26.066 | D181: pigs sold/sow/year
B182: = | C182: =C180/C181 -> 0.07672830507 | D182: /pig sold
A184: Marketing & Transportation
C185: 0 | D185: Trucking in
B186: + | C186: 4.5 | D186: Trucking out
B187: + | C187: 0.8 | D187: Council Levy
B188: + | C188: 0.06 | D188: Grading Charge
B189: + | C189: 0 | D189: Truck Washing
B190: + | C190: 0.25 | D190: Insurance
B191: + | C191: 0 | D191: Special Levy
B192: = | C192: =SUM(C185:C191) -> 5.61 | E192: /pig sold
A194: AI Cost
C195: 2.3 | E195: Number of services/sow
B196: x | C196: 7.5 | E196: Cost/dose (semen)
B197: x | C197: ='Farrow Input'!G13 -> 500 | E197: sows
B198: x | C198: ='Farrow Input'!G15 -> 2.38 | E198: Litters/Sow/Year
B199: ÷ | C199: ='Farrow Input'!F83 -> 13033 | E199: pigs sold
B200: = | C200: =(((C195*C196)*C197)*C198)/C199 -> 1.575040282 | E200: /pig sold
A202: Herd Replacement
A203: Sow | C203: 180 | E203: kg/sow (cull weight)
B204: x | C204: ='Farrow Input'!D60*0.56 -> 155.12 | E204: /100 kg live
B205: = | C205: =C203*C204/100 -> 279.216 | E205: /sow value of cull
C207: ='Fixed Cost'!I32 -> 300 | E207: /sow value of replacement
B208: - | C208: =C205 -> 279.216 | E208: /sow value of cull
B209: = | C209: =C207-C205 -> 20.784 | E209: net replacement cost
B210: x | C210: 40 | E210: percent sow culling rate
B211: ÷ | C211: ='Farrow Input'!$G$83 -> 26.066 | E211: pigs sold/sow/year
B212: = | C212: =(C209*C210/100)/C211 -> 0.3189442185 | E212: /pig sold
A214: Boar | C214: 225 | E214: kg/boar (cull weight)
B215: x | C215: ='Farrow Input'!D60*0.4 -> 110.8 | E215: /100 kg live
B216: = | C216: =C214*C215/100 -> 249.3 | E216: /boar value of cull
C218: ='Fixed Cost'!I44 -> 3000 | E218: /boar value of replacement
B219: - | C219: =C216 -> 249.3 | E219: /boar value of cull
B220: = | C220: =C218-C219 -> 2750.7 | E220: net replacement cost
B221: x | C221: 50 | E221: % culling rate
B222: x | C222: =G14 -> 3 | E222: number of boars
B223: ÷ | C223: =G13 -> 500 | E223: number of sows
B224: ÷ | C224: ='Farrow Input'!$G$83 -> 26.066 | E224: pigs sold/sow/year
B225: = | C225: =(C220*C221/100*C222/C223)/C224 -> 0.3165848231 | E225: /pig sold
B227: Total | C227: =C212+C225 -> 0.6355290417 | E227: /pig sold
... 16 more rows

Sheet Fixed Cost
A1: Fixed Costs
B3: Pig Places1
B4: Gestation | C4: ='Farrow Input'!G13 -> 500 | D4: 27 | E4: ft.2 per Pig Place | G4: =D4*C4 -> 13500 | H4: ft.2 Total
B5: Farrowing/Nursing | C5: ='Farrow Input'!E24 -> 1190 | D5: 15 | E5: ft.2 per Pig Place | G5: 17850 | H5: ft.2 Total
B6: Feeder | C6: ='Farrow Input'!E29/3 -> 4582.333333 | D6: 9.2 | E6: ft.2 per Pig Place | G6: =D6*C6 -> 42157.46667 | H6: ft.2 Total
A9: Buildings | C9: $/pig place | D9: Total | F9: Barn Equipment | H9: $/pig place | I9: Total
B10: Gestation | C10: 1750 | D10: =C10*$C$4 -> 875000 | E10: ="($"&ROUND((C10*$C$4)/$G$4,0)&"/sq.ft.) " -> ($65/sq.ft.) | G10: Gestation | H10: 700 | I10: =H10*$C$4 -> 350000 | J10: ="($"&ROUND((H10*$C$4)/$G$4,0)&"/sq.ft.) " -> ($26/sq.ft.)
B11: Farrowing/Nursing | C11: 1150 | D11: =C11*$C$5 -> 1368500 | E11: ="($"&ROUND((C11*$C$5)/$G$5,0)&"/sq.ft.) " -> ($77/sq.ft.) | G11: Farrowing/Nursing | H11: 400 | I11: =H11*$C$5 -> 476000 | J11: ="($"&ROUND((H11*$C$5)/$G$5,0)&"/sq.ft.) " -> ($27/sq.ft.)
B12: Feeder Barn Cost | C12: 460 | D12: =C12*$C$6 -> 2107873.333 | E12: ="($"&SUM(C12*$C$6)/$G$6&"/sq.ft.) " -> ($50/sq.ft.) | G12: Finishing Barn | H12: 120 | I12: =H12*$C$6 -> 549880 | J12: ="($"&ROUND((H12*$C$6)/$G$6,0)&"/sq.ft.) " -> ($13/sq.ft.)
B13: Office and Loading (300 sq.ft.) | C13: 30 | D13: =C13*$C$4 -> 15000 | E13: ="($"&ROUND((C13*$C$4)/300,0)&"/sq.ft.) " -> ($50/sq.ft.) | G13: Other | H13: 0 | I13: =H13*$C$6 -> 0 | L13: *HIDE*
B14: Manure Storage | C14: 240 | D14: =C14*$C$4 -> 120000 | G14: Fire Alarm System | H14: 6 | I14: =H14*$C$4 -> 3000 | L14: =(#REF!-#REF!)/(#REF!+D33) -> 
B15: Standby Generator | C15: 56 | D15: =C15*$C$4 -> 28000 | G15: Storage Bins | H15: 5.94 | I15: =H15*$C$6 -> 27219.06
B16: Total Barn Cost | D16: =SUM(D10:D15) -> 4514373.333 | G16: Total Equipment Cost | I16: =SUM(I10:I15) -> 1406099.06
B18: Residual Value (End of Useful Life) | D18: 0.5 | G18: Residual Value (End of Useful Life) | I18: 0.1
B19: Useful Life (years) | D19: 25 | G19: Useful Life (years) | I19: 10
B20: Owned Barn Equity | D20: 0.25 | G20: Owned Barn Equipment Equity | I20: 0.25
B21: Barn Financed | D21: =SUM(1-D20) -> 0.75 | G21: Barn Equipment Financed | I21: =SUM(1-I20) -> 0.75
B22: Barn Opportunity Cost (Investment Rate) | D22: 0.015 | G22: Equipment Opportunity Cost (Investment Rate) | I22: 0.015
B23: Buildings Cost | G23: Barn Equipment Cost
B24: Finance Rate & Term | C24: 0.07 | D24: 20 | E24: Years | G24: Finance Rate & Term | H24: 0.07 | I24: 10 | J24: Years
B25: Principle & Interest Cost | D25: =-PMT(C24,D24,D16*D21,0) -> 319593.6801 | G25: Principle & Interest Cost | I25: =-PMT(H24,I24,I16*I21,0) -> 150147.6546
B26: Buildings Depreciation Cost | D26: =(D16-(D16*D18))/D19 -> 90287.46667 | G26: Equipment Depreciation Cost | I26: =(I16-(I16*I18))/I19 -> 126548.9154
B27: Owned Building Opportunity Cost | D27: =SUM(D16*D20)*(D22) -> 16928.9 | G27: Owned Equipment Opportunity Cost | I27: =SUM(I16*I20)*(I22) -> 5272.871475
B28: Total Cost | D28: =SUM(D25:D27) -> 426810.0468 | G28: Total Cost | I28: =SUM(I25:I27) -> 281969.4414
B29: =" Total Cost $/pig sold (based on "&TEXT('Farrow Input'!F83,"#,###")&")" -> Total Cost $/pig sold (based on 13,033) | D29: =D28/'Farrow Input'!F83 -> 32.74841148 | G29: =" Total Cost $/pig sold (based on "&TEXT('Farrow Input'!F83,"#,###")&")" -> Total Cost $/pig sold (based on 13,033) | I29: =I28/'Farrow Input'!F83 -> 21.63503732
L30: w/o harvest
A31: Land | F31: Breeding Stock - Sows | L31: =-PMT($C$24,$D$24,L14*$D$21,0) -> 
B32: Average Land value ($/acre) | D32: 4000 | G32: Sow value ($/head) | I32: ='Farrow Input'!H13 -> 300
B33: Acres | D33: 40 | G33: Owned Sow Equity | I33: 0.25
B34: Site preparation cost | D34: 36000 | G34: =" Sows Financed ("&TEXT(I32*I34,"$#,###")&" per head)" -> Sows Financed ($225 per head) | I34: =SUM(1-I33) -> 0.75 | L34: =(L14-(L14*$D$18))/$D$19 -> 
B35: Owned Land Equity | D35: 0.25 | G35: Cow Opportunity Cost (Investment Rate) | I35: 0.015
B36: Land Financed | D36: =SUM(1-D35) -> 0.75 | G36: Sow cost
B37: Land Opportunity Cost (Investment Rate) | D37: 0.015 | G37: Finance Rate & Term | H37: 0.07 | I37: 5 | J37: Years
B38: Land cost | G38: Principle & Interest Cost | I38: =-PMT(H37,I37,I32*'Farrow Input'!G13*I34,0) -> 27437.70312
B39: Finance Rate & Term | C39: 0.06 | D39: 20 | E39: Years | G39: Owned Sows Opportunity Cost | I39: =SUM(I32*'Farrow Input'!G13*I33)*(I35) -> 562.5
B40: Principle & Interest Cost | D40: =-PMT(C39,D39,((D32*D33)+D34)*D36,0) -> 12816.12988 | E40: =-IPMT(C39,D39,((D32*D33)+D34)*D36,0) -> 0 | G40: Total Cost | I40: =SUM(I38:I39) -> 28000.20312
B41: Owned Land Opportunity Cost | D41: =SUM(((D32*D33)+D34)*D35)*(D37) -> 735 | G41: =" Total Cost $/pig sold (based on "&TEXT('Farrow Input'!F83,"#,###")&")" -> Total Cost $/pig sold (based on 13,033) | I41: =I40/'Farrow Input'!F83 -> 2.148408127
B42: Total Cost | D42: =SUM(D40:D41) -> 13551.12988
B43: =" Total Cost $/pig sold (based on "&TEXT('Farrow Input'!F83,"#,###")&")" -> Total Cost $/pig sold (based on 13,033) | D43: =D42/'Farrow Input'!F83 -> 1.039755227 | F43: Breeding Stock - Boars
G44: Boar value ($/head) | I44: ='Farrow Input'!H14 -> 3000
B45: Land Rental | G45: Owned Boar Equity | I45: 0.25
B46: Number of Acres rented out | C46: 0 | D46: acres | G46: =" Boars Financed ("&TEXT(I44*I46,"$#,###")&" per head)" -> Boars Financed ($2,250 per head) | I46: =SUM(1-I45) -> 0.75
B47: Land rental rate (income) | C47: 100 | D47: /acre | G47: Boar Opportunity Cost (Investment Rate) | I47: 0.015
G48: Boar cost
G49: Finance Rate & Term | H49: 0.085 | I49: 5 | J49: Years
G50: Principle & Interest Cost | I50: =-PMT(H49,I49,I44*'Farrow Input'!G14*I46,0) -> 1712.918825
G51: Owned Boars Opportunity Cost | I51: =SUM(I44*'Farrow Input'!G14*I45)*(I47) -> 33.75
B52: Total Capital Investment | D52: =D16+I16+(D32*D33)+D34+(I32*'Farrow Input'!G13)+(I44*'Farrow Input'!G14) -> 6275472.393 | G52: Total Cost | I52: =SUM(I50:I51) -> 1746.668825
B53: Total Capital Investment / Sow Place | D53: =D52/C4 -> 12550.94479 | G53: =" Total Cost $/pig sold (based on "&TEXT('Farrow Input'!F83,"#,###")&")" -> Total Cost $/pig sold (based on 13,033) | I53: =I52/'Farrow Input'!F83 -> 0.1340189385
A56: ¹ FOOTNOTE: The number of square feet in the building and the cost per square foot for buildings and equipment are approximations only. A certified building plan which is designed according to the average inventory of grower-finisher pigs should be used in order to get the exact dimensions and area for new buildings.
A58: 1 sq.ft. = 0.0929 sq.m; 1 sq.m.= 10.764 sq.ft.; 1 ft.= 0.3048 m
A59: 1 cubic metre = 1000 litres; 1 cubic metre = 35.314 cubic feet; 1 cubic metre = 219.97 imperial gallons
C63: pmt | D63: years | E63: loan amt | G63: interest
B64: Buildings | C64: =D25 -> 319593.6801 | D64: =D24 -> 20 | E64: =D16*D21 -> 3385780 | G64: =SUM(((C64*D64)-E64)/D64) -> 150304.6801
B65: equipment | C65: =I25 -> 150147.6546 | D65: =I19 -> 10 | E65: =I16*I21 -> 1054574.295 | G65: =SUM(((C65*D65)-E65)/D65) -> 44690.22506
B66: land | C66: =D40 -> 12816.12988 | D66: =D39 -> 20 | E66: =((D32*D33)+D34)*D36 -> 147000 | G66: =SUM(((C66*D66)-E66)/D66) -> 5466.129876
B67: sows | C67: =I38 -> 27437.70312 | D67: =I37 -> 5 | E67: =I32*'Farrow Input'!G13*I34 -> 112500 | G67: =SUM(((C67*D67)-E67)/D67) -> 4937.703125
B68: boars | C68: =I50 -> 1712.918825 | D68: =I49 -> 5 | E68: =I44*'Farrow Input'!G14*'Fixed Cost'!I46 -> 6750 | G68: 362.9188251
G69: =SUM(G64:G66) -> 200461.0351 | H69: total
G70: =G69/'Farrow Input'!F83 -> 15.38103545 | H70: per pig

Sheet Ingredient-Summary
B1: Summary of Purchased Feeds Used
C3: Farrow finish | E3: ='Farrow Input'!G13 -> 500 | F3: sows
C4: Total sold | E4: ='Farrow Input'!F83 -> 13033 | F4: pigs sold
E6: Total | F6: Total | G6: Total | H6: Total
E7: per Year | F7: per Month | G7: per Pig | H7: per Pig
E8: (tonnes) | F8: (tonnes) | G8: (kgs) | H8: (lbs)
B10: Sow Lactation | E10: =IF('Farrow Input'!F52<=0,0,(('Farrow Input'!F51*'Farrow Input'!F50)*E3)/1000) -> 464.6545 | F10: =E10/12 -> 38.72120833 | G10: =E10/$E$4*1000 -> 35.65215223 | H10: =G10*2.2046 -> 78.5987348
B11: Sow Gestation | E11: =IF('Farrow Input'!G52<=0,0,(('Farrow Input'!G51*'Farrow Input'!G50)*E3)/1000) -> 163.1847 | F11: 13.598725 | G11: 12.52088544 | H11: 27.60354405
B12: Boar Ration | E12: =IF('Farrow Input'!H52<=0,0,(('Farrow Input'!H51*'Farrow Input'!H50)*'Farrow Input'!E23)/1000) -> 3.285 | F12: 0.27375 | G12: 0.2520524822 | H12: 0.5556749022
B13: Pre Starter 1 | E13: =IF('Farrow Input'!E40<=0,0,('Farrow Input'!E37*'Farrow Input'!E27)/1000) -> 11.3144 | F13: 0.9428666667 | G13: 0.8681347349 | H13: 1.913889837
B14: Pre Starter 2 | E14: =IF('Farrow Input'!F40<=0,0,('Farrow Input'!F37*'Farrow Input'!E27)/1000) -> 56.572 | F14: 4.714333333 | G14: 4.340673675 | H14: 9.569449183
B15: Starter 1 | E15: =IF('Farrow Input'!G40<=0,0,('Farrow Input'!G37*'Farrow Input'!E27)/1000) -> 168.3017 | F15: 14.02514167 | G15: 12.91350418 | H15: 28.46911132
B16: Starter 2 | E16: =IF('Farrow Input'!H40<=0,0,('Farrow Input'!H37*'Farrow Input'!E27)/1000) -> 233.3595 | F16: 19.446625 | G16: 17.90527891 | H16: 39.47397788
B17: Starter | E17: =IF('Farrow Input'!F92<=0,0,('Farrow Input'!F89*'Farrow Input'!F64)/1000) -> 192.458 | F17: 16.03816667 | G17: 14.76697614 | H17: 32.55527559
B18: Grower | E18: =IF('Farrow Input'!G92<=0,0,('Farrow Input'!G89*'Farrow Input'!G64)/1000) -> 748.9021925 | F18: 62.40851604 | G18: 57.4619959 | H18: 126.6807162
B19: Finisher | E19: =IF('Farrow Input'!H92<=0,0,('Farrow Input'!H89*'Farrow Input'!H64)/1000) -> 377.6373347 | F19: 31.46977789 | G19: 28.97547262 | H19: 63.87932694
B20: Total | E20: =SUM(E10:E19) -> 2419.669327 | F20: =SUM(F10:F19) -> 201.6391106 | G20: =SUM(G10:G19) -> 185.6571263 | H20: =SUM(H10:H19) -> 409.2997007

Sheet Finish-O (hidden)
B3: =============================================================================
D4: GROWING AND FINISHING PIG PRODUCTION SUMMARY
B6: =============================================================================
B7: A. OPERATING COSTS | I7: TOTAL | J7: $/HOG SOLD | K7: $/PLACE
C8: 1. | D8: Feed Costs: | I8: -----------------------------------------------------------------------
D9: 1.01 | E9: Grower Ration #1 | I9: =J9*'Farrow Input'!F83 ->  | J9: =ROUND('Farrow Input'!F89*SUM('Farrow Input'!#REF!)/1000,2) ->  | K9: =J9*'Farrow Input'!F83/'Farrow Input'!I74 -> 
D10: 1.02 | E10: Grower Ration #2 | I10: =J10*'Farrow Input'!F83 ->  | J10: =ROUND('Farrow Input'!G89*SUM('Farrow Input'!#REF!)/1000,2) ->  | K10: =J10*'Farrow Input'!F83/'Farrow Input'!I74 -> 
D11: 1.02 | E11: Finisher Ration | I11: =J11*'Farrow Input'!F83 ->  | J11: =ROUND('Farrow Input'!H89*SUM('Farrow Input'!#REF!)/1000,2) ->  | K11: =J11*'Farrow Input'!F83/'Farrow Input'!I74 -> 
I12: ==================================================
D13: Total Feed Cost | I13: =SUM(I9:I12) ->  | J13: =SUM(J9:J12) ->  | K13: =SUM(K9:K12) -> 
C15: 2. | D15: Other Operating Costs:
D16: 2.01 | E16: Weanling Cost ** | I16: =J16*'Farrow Input'!F83 ->  | J16: =#REF!*'Farrow Input'!F79/'Farrow Input'!F83 ->  | K16: =J16*'Farrow Input'!F83/'Farrow Input'!I74 -> 
D17: 2.02 | E17: Veterinary Cost | I17: =J17*'Farrow Input'!F83 -> 0 | J17: =ROUND('Farrow Input'!C120*'Farrow Input'!F64/'Farrow Input'!F83,2) -> 0 | K17: =J17*'Farrow Input'!F83/'Farrow Input'!I74 -> 0
D18: 2.03 | E18: Maintenance & Repairs | I18: =J18*'Farrow Input'!F83 ->  | J18: =ROUND(#REF!*#REF!/'Farrow Input'!F83/100,2) ->  | K18: =J18*'Farrow Input'!F83/'Farrow Input'!I74 -> 
D19: B7 | E19: Hydro (Heat) | I19: =J19*'Farrow Input'!F83 ->  | J19: =ROUND(#REF!*#REF!*'Farrow Input'!I74/'Farrow Input'!F83,2) ->  | K19: =J19*'Farrow Input'!F83/'Farrow Input'!I74 -> 
D20: 2.05 | E20: Insurance | I20: =J20*'Farrow Input'!F83 ->  | J20: =#REF! ->  | K20: =J20*'Farrow Input'!F83/'Farrow Input'!I74 -> 
D21: 2.06 | E21: Manure Haulage | I21: =J21*'Farrow Input'!F83 ->  | J21: =ROUND(#REF!,2) ->  | K21: =J21*'Farrow Input'!F83/'Farrow Input'!I74 -> 
D22: 2.07 | E22: Office Supplies | I22: =J22*'Farrow Input'!F83 ->  | J22: =ROUND(#REF!*'Farrow Input'!I74/'Farrow Input'!F83,2) ->  | K22: =J22*'Farrow Input'!F83/'Farrow Input'!I74 -> 
D23: 2.08 | E23: Marketing & Transportation | I23: =J23*'Farrow Input'!F83 ->  | J23: =ROUND('Farrow Input'!#REF!,2) ->  | K23: =J23*'Farrow Input'!F83/'Farrow Input'!I74 -> 
D24: 2.09 | E24: Property Taxes | I24: ='Farrow Input'!#REF! ->  | J24: =I24/'Farrow Input'!F83 ->  | K24: =J24*'Farrow Input'!F83/'Farrow Input'!I74 -> 
I25: ================================================
D26: Subtotal Operating Costs | I26: =J26*'Farrow Input'!F83 ->  | J26: =J13+SUM(J16:J25) ->  | K26: =J26*'Farrow Input'!F83/'Farrow Input'!I74 -> 
D27: 2.10 | E27: Interest on Operating Cost | I27: =J27*'Farrow Input'!F83 ->  | J27: =ROUND((J16*#REF!/100*'Farrow Input'!I68/365)+((J26-J16)*#REF!/100*'Farrow Input'!I68/365),2) ->  | K27: =J27*'Farrow Input'!F83/'Farrow Input'!I74 -> 
I28: ================================================
C29: TOTAL OPERATING COSTS | I29: =J29*'Farrow Input'!F83 ->  | J29: =J26+J27 ->  | K29: =J29*'Farrow Input'!F83/'Farrow Input'!I74 -> 
B31: B. FIXED COSTS
C32: 3. | D32: Depreciation:
D33: 3.01 | E33: Buildings and Manure Storage | I33: =J33*'Farrow Input'!F83 ->  | J33: =#REF! ->  | K33: =J33*'Farrow Input'!F83/'Farrow Input'!I74 -> 
D34: 3.02 | E34: Equipment | I34: =J34*'Farrow Input'!F83 ->  | J34: =ROUND((#REF!-(#REF!/100*#REF!))/#REF!/'Farrow Input'!F83,2) ->  | K34: =J34*'Farrow Input'!F83/'Farrow Input'!I74 -> 
I35: =============================================
D36: Total Depreciation Cost | I36: =J36*'Farrow Input'!F83 ->  | J36: =SUM(J32:J35) ->  | K36: =J36*'Farrow Input'!F83/'Farrow Input'!I74 -> 
C38: 4. | D38: Investment:
D39: 4.01 | E39: Buildings and Manure Storage | I39: =J39*'Farrow Input'!F83 ->  | J39: =#REF! ->  | K39: =J39*'Farrow Input'!F83/'Farrow Input'!I74 -> 
D40: 4.02 | E40: Equipment | I40: =J40*'Farrow Input'!F83 ->  | J40: =ROUND((#REF!+(#REF!/100*#REF!))/2*#REF!/100/'Farrow Input'!F83,2) ->  | K40: =J40*'Farrow Input'!F83/'Farrow Input'!I74 -> 
I41: ===========================================
D42: Total Investment Cost | I42: =J42*'Farrow Input'!F83 ->  | J42: =SUM(J38:J41) ->  | K42: =J42*'Farrow Input'!F83/'Farrow Input'!I74 -> 
I43: ============================================
C44: TOTAL FIXED COSTS | I44: =J44*'Farrow Input'!F83 ->  | J44: =J36+J42 ->  | K44: =J44*'Farrow Input'!F83/'Farrow Input'!I74 -> 
B46: C. LABOUR
D47: ='Farrow Input'!#REF! ->  | E47: hours/wk. @ | G47: ='Farrow Input'!#REF! ->  | H47: /hour | I47: =J47*'Farrow Input'!F83 ->  | J47: =ROUND('Farrow Input'!#REF!*'Farrow Input'!#REF!/'Farrow Input'!F83,2) ->  | K47: =J47*'Farrow Input'!F83/'Farrow Input'!I74 -> 
I48: ===============================================
C49: TOTAL COST OF PRODUCTION | I49: =J49*'Farrow Input'!F83 ->  | J49: =J29+J44+J47 ->  | K49: =J49*'Farrow Input'!F83/'Farrow Input'!I74 -> 
C51: BREAK-EVEN PRICE (carcass) | H51: $/100 kg | I51: $/CWT
H52: ---------------------- | I52: -----------------------
C53: Operating Cost | H53: =J29/('Farrow Input'!H66*'Farrow Input'!H61*'Farrow Input'!H60)*1000000 ->  | I53: =H53/2.2046 -> 
C54: Operating & Labour Cost | H54: =H53+J47/('Farrow Input'!H66*'Farrow Input'!H61*'Farrow Input'!H60)*1000000 ->  | I54: =H54/2.2046 -> 
C55: Operating, Labour & Fixed Cost | H55: =H54+J44/('Farrow Input'!H66*'Farrow Input'!H61*'Farrow Input'!H60)*1000000 ->  | I55: =H55/2.2046 -> 
C57: Break-even Price = Cost per Hog Sold / (Slaughter Wt. X Dressing % X Index)
C59: ** Footnote on Weanling Cost: This is not the price paid for the weanling. Because
C60: this figure is expressed on a "per hog sold" basis, it includes death loss.

Sheet Weaner-O (hidden)
B3: =============================================================================
C4: WEANER PIG PRODUCTION COST SUMMARY
B6: =============================================================================
B7: A. | C7: OPERATING COSTS | H7: TOTAL | I7: $/HOG SOLD | J7: $/SOW/YR
C8: 1. | D8: Feed Costs: | H8: ------------------------------------------------------------------------
D9: A1 | E9: Sow Lactation Ration | H9: =ROUND('Farrow Input'!G16*'Farrow Input'!F24*'Farrow Input'!G51*'Farrow Input'!#REF!/1000*'Farrow Input'!G13,2) ->  | I9: =ROUND(J9/'Farrow Input'!$G$83,2) ->  | J9: =ROUND('Farrow Input'!G16*'Farrow Input'!F24*'Farrow Input'!G51*'Farrow Input'!#REF!/1000,2) -> 
D10: 1.02 | E10: Sow Gestation Ration | H10: =ROUND((365-'Farrow Input'!G16*'Farrow Input'!F24)*'Farrow Input'!F51*'Farrow Input'!#REF!/1000*'Farrow Input'!G13,2) ->  | I10: =ROUND(J10/'Farrow Input'!$G$83,2) ->  | J10: =ROUND((365-'Farrow Input'!G16*'Farrow Input'!F24)*'Farrow Input'!F51*'Farrow Input'!#REF!/1000,2) -> 
D11: 1.03 | E11: Boar Ration | H11: =ROUND(365*'Farrow Input'!H51*'Farrow Input'!#REF!/1000*'Farrow Input'!E23/'Farrow Input'!E22*'Farrow Input'!G13,2) ->  | I11: =ROUND(J11/'Farrow Input'!$G$83,2) ->  | J11: =ROUND(365*'Farrow Input'!H51*'Farrow Input'!#REF!/1000*'Farrow Input'!E23/'Farrow Input'!E22,2) -> 
D12: 1.04 | E12: Creep Feed | H12: =ROUND('Farrow Input'!E37*'Farrow Input'!#REF!/1000*'Farrow Input'!F25*'Farrow Input'!G13,2) ->  | I12: =ROUND(J12/'Farrow Input'!$G$83,2) ->  | J12: =ROUND('Farrow Input'!E37*'Farrow Input'!#REF!/1000*'Farrow Input'!F25,2) -> 
D13: 1.05 | E13: Starter Ration #1 | H13: =ROUND('Farrow Input'!F37*'Farrow Input'!#REF!/1000*'Farrow Input'!F29*'Farrow Input'!G13,2) ->  | I13: =ROUND(J13/'Farrow Input'!$G$83,2) ->  | J13: =ROUND('Farrow Input'!F37*'Farrow Input'!#REF!/1000*'Farrow Input'!F29,2) -> 
D14: 1.05 | E14: Starter Ration #2 | H14: =ROUND('Farrow Input'!G37*'Farrow Input'!#REF!/1000*'Farrow Input'!F29*'Farrow Input'!G13,2) ->  | I14: =ROUND(J14/'Farrow Input'!$G$83,2) ->  | J14: =ROUND('Farrow Input'!G37*'Farrow Input'!#REF!/1000*'Farrow Input'!F29,2) -> 
H15: ====================================
D16: Total Feed Cost | H16: =J16*'Farrow Input'!E22 ->  | I16: =ROUND(J16/'Farrow Input'!$G$83,2) ->  | J16: =SUM(J8:J15) -> 
C18: 2. | D18: Other Operating Costs:
D19: A7 | E19: Vet. Medicine & Supplies:
E20: Professional Services | H20: =J20*'Farrow Input'!E22 -> 70000 | I20: =ROUND(J20/'Farrow Input'!$G$83,2) -> 5.37 | J20: =ROUND('Farrow Input'!C115,2) -> 140
E21: Medication | H21: =J21*'Farrow Input'!E22 -> 0 | I21: =ROUND(J21/'Farrow Input'!$G$83,2) -> 0 | J21: =ROUND('Farrow Input'!C116,2) -> 0
D22: A8 | E22: Maintenance & Repairs | H22: =J22*'Farrow Input'!E22 ->  | I22: =ROUND(J22/'Farrow Input'!$G$83,2) ->  | J22: =ROUND('Farrow Input'!C125*'Farrow Input'!#REF!/100,2) -> 
D23: A9 | E23: Hydro (Heat) | H23: =J23*'Farrow Input'!E22 ->  | I23: =ROUND(J23/'Farrow Input'!$G$83,2) ->  | J23: =ROUND('Farrow Input'!#REF!*'Farrow Input'!#REF!,2) -> 
D24: 2.04 | E24: Insurance | H24: =(+'Farrow Input'!#REF!+'Farrow Input'!#REF!)*'Farrow Input'!C144/100 ->  | I24: =ROUND(J24/'Farrow Input'!$G$83,2) ->  | J24: =H24/'Farrow Input'!G13 -> 
D25: 2.05 | E25: Manure Haulage | H25: =J25*'Farrow Input'!E22 ->  | I25: =ROUND(J25/'Farrow Input'!$G$83,2) ->  | J25: =ROUND('Farrow Input'!D151/1000*'Farrow Input'!#REF!*365,2) -> 
D26: 2.06 | E26: Office Supplies | H26: =J26*'Farrow Input'!E22 -> 1500 | I26: =ROUND(J26/'Farrow Input'!$G$83,2) -> 0.12 | J26: =ROUND((500+(2*'Farrow Input'!E22))/'Farrow Input'!E22,2) -> 3
D27: 2.07 | E27: Marketing & Transportation | H27: =J27*'Farrow Input'!E22 -> 0 | I27: =ROUND(J27/'Farrow Input'!$G$83,2) -> 0 | J27: =ROUND('Farrow Input'!G184*'Farrow Input'!F29,2) -> 0
D28: 2.08 | E28: Sow Replacement | H28: =J28*'Farrow Input'!E22 -> 4155 | I28: =ROUND(J28/'Farrow Input'!$G$83,2) -> 0.32 | J28: =ROUND('Farrow Input'!C210/100*('Farrow Input'!C207-('Farrow Input'!C203*'Farrow Input'!C204/100)),2) -> 8.31
D29: 2.09 | E29: Boar Replacement | H29: =J29*'Farrow Input'!E22 ->  | I29: =ROUND(J29/'Farrow Input'!$G$83,2) ->  | J29: =ROUND('Farrow Input'!C221/100*'Farrow Input'!E23*('Farrow Input'!#REF!-('Farrow Input'!C214*'Farrow Input'!#REF!/100))/'Farrow Input'!E22,2) -> 
D30: 2.09 | E30: Property Taxes | H30: ='Farrow Input'!#REF! ->  | I30: =ROUND(J30/'Farrow Input'!$G$83,2) ->  | J30: =H30/'Farrow Input'!G13 -> 
H31: ====================================
E32: Subtotal Operating Costs | H32: =SUM(H15:H31) ->  | I32: =ROUND(J32/'Farrow Input'!$G$83,2) ->  | J32: =H32/'Farrow Input'!G13 -> 
D33: 2.10 | E33: Interest on Operating Cost | H33: =J33*'Farrow Input'!E22 ->  | I33: =#REF! ->  | J33: =I33*'Farrow Input'!G83 -> 
H34: ====================================
C35: TOTAL OPERATING COSTS | H35: =J35*'Farrow Input'!E22 ->  | I35: =ROUND(J35/'Farrow Input'!$G$83,2) ->  | J35: =SUM(J32:J33) -> 
B37: B. | C37: FIXED COSTS
C38: 3. | D38: Depreciation:
D39: 3.01 | E39: Buildings and Manure Storage | H39: =J39*'Farrow Input'!E22 ->  | I39: =ROUND(J39/'Farrow Input'!F29,2) ->  | J39: =#REF! -> 
D40: 3.02 | E40: Equipment | H40: =J40*'Farrow Input'!E22 ->  | I40: =ROUND(J40/'Farrow Input'!F29,2) ->  | J40: =ROUND(('Farrow Input'!#REF!-('Farrow Input'!#REF!/100*'Farrow Input'!#REF!))/'Farrow Input'!#REF!,2) -> 
H41: ====================================
D42: Total Depreciation Cost | H42: =J42*'Farrow Input'!E22 ->  | I42: =ROUND(J42/'Farrow Input'!F29,2) ->  | J42: =SUM(J38:J41) -> 
C44: 4. | D44: Investment:
D45: 4.01 | E45: Buildings and Manure Storage | H45: =J45*'Farrow Input'!E22 ->  | I45: =ROUND(J45/'Farrow Input'!F29,2) ->  | J45: =#REF! -> 
D46: 4.02 | E46: Equipment | H46: =J46*'Farrow Input'!E22 ->  | I46: =ROUND(J46/'Farrow Input'!F29,2) ->  | J46: =ROUND(('Farrow Input'!#REF!+('Farrow Input'!#REF!/100*'Farrow Input'!#REF!))/2*'Farrow Input'!#REF!/100,2) -> 
D47: 4.03 | E47: Breeding Herd | H47: =J47*'Farrow Input'!E22 ->  | I47: =ROUND(J47/'Farrow Input'!F29,2) ->  | J47: =ROUND('Farrow Input'!#REF!*'Farrow Input'!#REF!/100,2) -> 
H48: ====================================
D49: Total Investment Cost | H49: =J49*'Farrow Input'!E22 ->  | I49: =ROUND(J49/'Farrow Input'!F29,2) ->  | J49: =SUM(J44:J48) -> 
H50: ====================================
C51: TOTAL FIXED COSTS | H51: =J51*'Farrow Input'!E22 ->  | I51: =ROUND(J51/'Farrow Input'!F29,2) ->  | J51: =J42+J49 -> 
B53: C. | C53: LABOUR
D54: ='Farrow Input'!#REF! ->  | E54: hours/wk. | H54: =J54*'Farrow Input'!E22 ->  | I54: =ROUND(J54/'Farrow Input'!F29,2) ->  | J54: =ROUND('Farrow Input'!#REF!*'Farrow Input'!#REF!*52/'Farrow Input'!E22,2) -> 
H55: ====================================
C56: TOTAL COST OF PRODUCTION | H56: =J56*'Farrow Input'!E22 ->  | I56: =ROUND(J56/'Farrow Input'!F29,2) ->  | J56: =J35+J51+J54 -> 
B58: =============================================================================
F59: Revenue per pig sold: | J59: =#REF! -> 
F61: Net of Operating Cost | J61: =IF(J59=0,0,J59-I35) -> 
F62: Net of Operating & Labour Cost | J62: =IF(J59=0,0,J61-I54) -> 
F63: Net of Operating, Labour & Fixed Cost | J63: =IF(J59=0,0,J62-I51) -> 
